[Event "94th FRA-ch Open D 2019"]
[Site "Chartres"]
[Date "2019.08.24"]
[Round "8.2"]
[White "Minatchy, Tristan"]
[Black "Decurninge, Brice"]
[Result "1-0"]
[ECO "C01"]
[WhiteElo "1452"]
[BlackElo "1462"]
[Annotator "NA"]
[PlyCount "53"]
[EventDate "2019.08.17"]
[EventType "swiss"]
[EventCountry "FRA"]
[SourceTitle "playchess.com"]
[Source "ChessBase"]
[SourceQuality "1"]
[TimeControl "40/5400+30:1800+30"]

1. e4 {[%emt 0:00:00]} e6 {[%emt 0:00:00]} 2. d4 {[%emt 0:00:00]} d5 {[%emt 0:00:00]} 3. exd5 {[%emt 0:00:04]} exd5 {[%emt 0:00:00]} 4. Bd3 {[%emt 0:00:15]} c6 {[%emt 0:00:30]} 5. Qf3 {[%emt 0:03:26]} Nf6 {[%emt 0:14:07]} 6. Ne2 {[%emt 0:03:45]} Bg4 {[%emt 0:05:31]} 7. Qg3 {[%emt 0:01:06]} Bxe2 {[%emt 0:01:32]} 8. Bxe2 {[%emt 0:00:06]} Ne4 {[%emt 0:03:56]} 9. Qb3 {[%emt 0:06:37]} Qc7 {[%emt 0:03:06]} 10. Nd2 {[%emt 0:04:11]} Nxd2 {[%emt 0:05:47]} 11. Bxd2 {[%emt 0:00:27]} Bd6 {[%emt 0:01:51]} 12. O-O-O {[%emt 0:05:09]} O-O {[%emt 0:03:17]} 13. Bb4 {[%emt 0:04:16]} Bxb4 {[%emt 0:03:40]} 14. Qxb4 {[%emt 0:00:25]} Nd7 {[%emt 0:02:07]} 15. Qd2 {[%emt 0:10:18]} Nf6 {[%emt 0:02:25]} 16. f3 {[%emt 0:08:48]} a5 {[%emt 0:10:33]} 17. Bd3 {[%emt 0:09:44]} b5 {[%emt 0:04:38]} 18. a3 {[%emt 0:01:45]} Rfb8 {[%emt 0:06:46]} 19. h4 {[%emt 0:04:46]} a4 {[%emt 0:08:09]} 20. c3 {[%emt 0:02:09]} Re8 {[%emt 0:05:13]} 21. h5 {[%emt 0:08:17]} Re7 {[%emt 0:01:58]} 22. h6 {[%emt 0:03:59]} g6 {[%emt 0:00:12]} 23. Qg5 {[%emt 0:00:55]} Ne8 {[%emt 0:02:32]} 24. Rhe1 {[%emt 0:04:50]} f6 {[%emt 0:00:49]} 25. Qg4 {[%emt 0:01:03]} Nd6 {[%emt 0:02:43]} 26. Bxg6 {[%emt 0:06:59]} Kh8 {[%emt 0:02:06]} 27. Bc2 {[%emt 0:01:59]} 1-0

[Event "94th FRA-ch Open D 2019"]
[Site "Chartres"]
[Date "2019.08.24"]
[Round "8.3"]
[White "Nezosi, Christophe"]
[Black "Thillerot, Anthony"]
[Result "0-1"]
[ECO "C11"]
[WhiteElo "1523"]
[BlackElo "1542"]
[Annotator "NA"]
[PlyCount "60"]
[EventDate "2019.08.17"]
[EventType "swiss"]
[EventCountry "FRA"]
[SourceTitle "playchess.com"]
[Source "ChessBase"]
[SourceQuality "1"]
[TimeControl "40/5400+30:1800+30"]

1. e4 {[%emt 0:00:00]} e6 {[%emt 0:00:00]} 2. d4 {[%emt 0:00:00]} d5 {[%emt 0:00:00]} 3. Nc3 {[%emt 0:00:02]} Nf6 {[%emt 0:00:39]} 4. e5 {[%emt 0:00:47]} Nfd7 {[%emt 0:00:14]} 5. f4 {[%emt 0:00:17]} c5 {[%emt 0:00:06]} 6. Nf3 {[%emt 0:00:35]} Nc6 {[%emt 0:05:25]} 7. Be3 {[%emt 0:02:01]} a6 {[%emt 0:08:03]} 8. a4 {[%emt 0:04:47]} Qb6 {[%emt 0:02:59]} 9. Rb1 {[%emt 0:11:10]} cxd4 {[%emt 0:02:51]} 10. Nxd4 {[%emt 0:03:51]} Bc5 {[%emt 0:00:25]} 11. Nce2 {[%emt 0:03:53]} f6 {[%emt 0:16:33]} 12. Nxe6 {[%emt 0:14:33]} Bxe3 {[%emt 0:01:14]} 13. Qxd5 {[%emt 0:01:31]} Nb4 {[%emt 0:20:37]} 14. Nxg7+ {[%emt 0:06:46]} Kf8 {[%emt 0:01:31]} 15. Ne6+ {[%emt 0:01:37]} Ke7 {[%emt 0:00:09]} 16. Qb3 {[%emt 0:12:03]} Bf2+ {[%emt 0:05:20]} 17. Kd2 {[%emt 0:11:06]} Qxe6 {[%emt 0:01:16]} 18. Qxb4+ {[%emt 0:02:40]} Bc5 {[%emt 0:01:02]} 19. exf6+ {[%emt 0:01:58]} Qxf6 {[%emt 0:01:16]} 20. Qc4 {[%emt 0:07:20]} Qd6+ {[%emt 0:04:14]} 21. Kc3 {[%emt 0:01:52]} Nb6 {[%emt 0:01:43]} 22. Qe4+ {[%emt 0:04:45]} Be6 {[%emt 0:00:02]} 23. b3 {[%emt 0:04:09]} Ba3 {[%emt 0:04:40]} 24. Nd4 {[%emt 0:01:00]} Nd5+ {[%emt 0:00:25]} 25. Kd2 {[%emt 0:02:14]} Qb4+ {[%emt 0:00:56]} 26. Ke2 {[%emt 0:01:28]} Nc3+ {[%emt 0:00:02]} 27. Kf3 {[%emt 0:00:31]} Nxe4 {[%emt 0:00:01]} 28. Kxe4 {[%emt 0:00:31]} Rad8 {[%emt 0:04:43]} 29. Rd1 {[%emt 0:00:32]} Bb2 {[%emt 0:01:43]} 30. Rd3 {[%emt 0:00:29]} Rxd4+ {[%emt 0:00:35]} 0-1

[Event "94th FRA-ch Open D 2019"]
[Site "Chartres"]
[Date "2019.08.24"]
[Round "8.4"]
[White "Melier, Ludovic"]
[Black "Gatineau, Milann"]
[Result "1-0"]
[ECO "C01"]
[WhiteElo "1425"]
[BlackElo "1517"]
[Annotator "NA"]
[PlyCount "91"]
[EventDate "2019.08.17"]
[EventType "swiss"]
[EventCountry "FRA"]
[SourceTitle "playchess.com"]
[Source "ChessBase"]
[SourceQuality "1"]
[TimeControl "40/5400+30:1800+30"]

1. e4 {[%emt 1:30:30]} e6 {[%emt 1:30:30]} 2. d4 {[%emt 0:00:30]} d5 {[%emt 0:00:30]} 3. exd5 {[%emt 0:00:30]} exd5 {[%emt 0:00:30]} 4. Nf3 {[%emt 0:00:30]} Bd6 {[%emt 0:00:30]} 5. Be2 {[%emt 0:00:30]} Nf6 {[%emt 0:00:30]} 6. O-O {[%emt 0:00:30]} h6 {[%emt 0:00:30]} 7. Bb5+ {[%emt 0:00:30]} c6 {[%emt 0:00:30]} 8. Re1+ {[%emt 0:00:30]} Be6 {[%emt 0:00:30]} 9. Bd3 {[%emt 0:00:30]} O-O {[%emt 0:00:30]} 10. Nbd2 {[%emt 0:00:30]} Nbd7 {[%emt 0:00:30]} 11. Nb3 {[%emt 0:00:30]} Qc7 {[%emt 0:00:30]} 12. g3 {[%emt 0:00:30]} Rfe8 {[%emt 0:00:30]} 13. Bd2 {[%emt 0:00:30]} b6 {[%emt 0:00:30]} 14. Nh4 {[%emt 0:00:30]} Bg4 {[%emt 0:00:30]} 15. Be2 {[%emt 0:00:30]} Be6 {[%emt 0:00:30]} 16. Bd3 {[%emt 0:00:30]} c5 {[%emt 0:00:30]} 17. dxc5 {[%emt 0:00:30]} bxc5 {[%emt 0:00:30]} 18. Bf1 {[%emt 0:00:30]} a5 {[%emt 0:00:30]} 19. a4 {[%emt 0:00:30]} Be5 {[%emt 0:00:30]} 20. f4 {[%emt 0:00:30]} Bg4 {[%emt 0:00:30]} 21. Qc1 {[%emt 0:00:30]} Bd6 {[%emt 0:00:30]} 22. Rxe8+ {[%emt 0:00:30]} Nxe8 {[%emt 0:00:30]} 23. Qe1 {[%emt 0:00:30]} Nef6 {[%emt 0:00:30]} 24. Bxa5 {[%emt 0:00:30]} Qa7 {[%emt 0:00:30]} 25. Bc3 {[%emt 0:00:30]} Re8 {[%emt 0:00:30]} 26. Qd2 {[%emt 0:00:30]} d4 {[%emt 0:00:30]} 27. Ba5 {[%emt 0:00:30]} Ne4 {[%emt 0:00:30]} 28. Qd3 {[%emt 0:00:30]} Ndf6 {[%emt 0:00:30]} 29. Qa6 {[%emt 0:00:30]} Qe7 {[%emt 0:00:30]} 30. Bb5 {[%emt 0:00:30]} Rc8 {[%emt 0:00:30]} 31. f5 {[%emt 0:00:30]} Rb8 {[%emt 0:00:30]} 32. Bc4 {[%emt 0:00:30]} Ng5 {[%emt 0:00:30]} 33. Re1 {[%emt 0:00:30]} Qd7 {[%emt 0:00:30]} 34. Bb5 {[%emt 0:00:30]} Nh3+ {[%emt 0:00:30]} 35. Kf1 {[%emt 0:00:30]} Qb7 {[%emt 0:00:30]} 36. Qxb7 {[%emt 0:00:30]} Rxb7 {[%emt 0:00:30]} 37. Bc4 {[%emt 0:00:30]} Bh5 {[%emt 0:00:30]} 38. Kg2 {[%emt 0:00:30]} Bg4 {[%emt 0:00:30]} 39. Bd8 {[%emt 0:00:30]} Nh7 {[%emt 0:00:30]} 40. Re8+ {[%emt 0:00:30]} Nf8 {[%emt 0:00:30]} 41. a5 {[%emt 0:30:30]} Ra7 {[%emt 0:30:30]} 42. Bb6 {[%emt 0:00:30]} Rd7 {[%emt 0:00:30]} 43. a6 {[%emt 0:00:30]} Bc7 {[%emt 0:00:30]} 44. Bxc5 {[%emt 0:00:30]} Rd8 {[%emt 0:00:30]} 45. Rxd8 {[%emt 0:00:30]} Bxd8 {[%emt 0:00:30]} 46. a7 {[%emt 0:00:30]} 1-0

[Event "94th FRA-ch Open D 2019"]
[Site "Chartres"]
[Date "2019.08.24"]
[Round "8.5"]
[White "Paralieu, Maxime"]
[Black "Vu Dinh, Adrien"]
[Result "0-1"]
[ECO "C57"]
[WhiteElo "1480"]
[BlackElo "1513"]
[Annotator "NA"]
[PlyCount "50"]
[EventDate "2019.08.17"]
[EventType "swiss"]
[EventCountry "FRA"]
[SourceTitle "playchess.com"]
[Source "ChessBase"]
[SourceQuality "1"]
[TimeControl "40/5400+30:1800+30"]

1. e4 {[%emt 0:00:00]} e5 {[%emt 0:00:00]} 2. Nf3 {[%emt 0:00:08]} Nc6 {[%emt 0:00:00]} 3. Bc4 {[%emt 0:00:48]} Nf6 {[%emt 0:00:00]} 4. Ng5 {[%emt 0:01:19]} d5 {[%emt 0:00:06]} 5. exd5 {[%emt 0:01:05]} b5 {[%emt 0:00:08]} 6. Bf1 {[%emt 0:04:03]} Nxd5 {[%emt 0:00:13]} 7. d3 {[%emt 0:01:25]} Be7 {[%emt 0:01:57]} 8. Ne4 {[%emt 0:02:33]} O-O {[%emt 0:00:21]} 9. g3 {[%emt 0:02:40]} b4 {[%emt 0:04:49]} 10. Bg2 {[%emt 0:03:43]} Be6 {[%emt 0:03:28]} 11. O-O {[%emt 0:04:02]} h6 {[%emt 0:04:45]} 12. c4 {[%emt 0:08:02]} bxc3 {[%emt 0:01:04]} 13. Nexc3 {[%emt 0:00:53]} Qd7 {[%emt 0:01:31]} 14. b3 {[%emt 0:16:14]} Rad8 {[%emt 0:03:14]} 15. Bb2 {[%emt 0:03:06]} Bg4 {[%emt 0:06:22]} 16. Qd2 {[%emt 0:02:48]} Bg5 {[%emt 0:00:28]} 17. f4 {[%emt 0:07:11]} Nxc3 {[%emt 0:02:41]} 18. Qxc3 {[%emt 0:03:17]} Nd4 {[%emt 0:00:13]} 19. Re1 {[%emt 0:04:21]} exf4 {[%emt 0:01:39]} 20. gxf4 {[%emt 0:01:05]} Rfe8 {[%emt 0:05:34]} 21. fxg5 {[%emt 0:06:41]} Bf3 {[%emt 0:04:46]} 22. Rxe8+ {[%emt 0:07:30]} Qxe8 {[%emt 0:00:34]} 23. Bxf3 {[%emt 0:00:29]} Qe3+ {[%emt 0:00:23]} 24. Kg2 {[%emt 0:02:53]} Qxf3+ {[%emt 0:00:12]} 25. Kg1 {[%emt 0:00:13]} Ne2# {[%emt 0:00:06]} 0-1

[Event "94th FRA-ch Open D 2019"]
[Site "Chartres"]
[Date "2019.08.24"]
[Round "8.6"]
[White "Catherinot, Laetitia"]
[Black "Druon, Thibault"]
[Result "0-1"]
[ECO "A39"]
[WhiteElo "1587"]
[BlackElo "1388"]
[Annotator "NA"]
[PlyCount "136"]
[EventDate "2019.08.17"]
[EventType "swiss"]
[EventCountry "FRA"]
[SourceTitle "playchess.com"]
[Source "ChessBase"]
[SourceQuality "1"]
[TimeControl "40/5400+30:1800+30"]

1. c4 {[%emt 0:00:00]} g6 {[%emt 0:00:00]} 2. g3 {[%emt 0:03:18]} Nf6 {[%emt 0:00:32]} 3. Bg2 {[%emt 0:00:25]} Bg7 {[%emt 0:00:39]} 4. Nf3 {[%emt 0:02:45]} c5 {[%emt 0:00:26]} 5. O-O {[%emt 0:00:51]} Nc6 {[%emt 0:00:35]} 6. d4 {[%emt 0:04:49]} cxd4 {[%emt 0:01:28]} 7. Nxd4 {[%emt 0:00:04]} Nxd4 {[%emt 0:00:45]} 8. Qxd4 {[%emt 0:00:05]} d6 {[%emt 0:00:28]} 9. Nc3 {[%emt 0:04:34]} O-O {[%emt 0:02:40]} 10. Qh4 {[%emt 0:08:02]} Rb8 {[%emt 0:03:26]} 11. Bh6 {[%emt 0:01:29]} a6 {[%emt 0:12:52]} 12. Bxg7 {[%emt 0:00:08]} Kxg7 {[%emt 0:00:10]} 13. Qd4 {[%emt 0:07:37]} Be6 {[%emt 0:02:04]} 14. b3 {[%emt 0:04:07]} Kg8 {[%emt 0:02:39]} 15. e4 {[%emt 0:04:51]} b5 {[%emt 0:07:26]} 16. cxb5 {[%emt 0:00:20]} axb5 {[%emt 0:01:04]} 17. Rfc1 {[%emt 0:16:13]} b4 {[%emt 0:03:37]} 18. Nd5 {[%emt 0:01:11]} Bxd5 {[%emt 0:00:53]} 19. exd5 {[%emt 0:00:12]} Qa5 {[%emt 0:00:17]} 20. Rc6 {[%emt 0:08:21]} Rb5 {[%emt 0:10:42]} 21. Qh4 {[%emt 0:11:15]} Re8 {[%emt 0:24:11]} 22. Rc4 {[%emt 0:01:47]} Qb6 {[%emt 0:04:30]} 23. Rac1 {[%emt 0:03:36]} Kg7 {[%emt 0:04:49]} 24. Qd4 {[%emt 0:04:00]} Qxd4 {[%emt 0:05:37]} 25. Rxd4 {[%emt 0:00:01]} Ra8 {[%emt 0:00:24]} 26. Ra1 {[%emt 0:02:22]} Nd7 {[%emt 0:01:06]} 27. Bf1 {[%emt 0:00:22]} Rb6 {[%emt 0:01:19]} 28. Bc4 {[%emt 0:01:59]} Ne5 {[%emt 0:00:47]} 29. Be2 {[%emt 0:00:46]} Ra5 {[%emt 0:00:56]} 30. f4 {[%emt 0:00:21]} Nd7 {[%emt 0:00:08]} 31. Bc4 {[%emt 0:00:34]} Nc5 {[%emt 0:01:44]} 32. Kf2 {[%emt 0:02:36]} f5 {[%emt 0:01:00]} 33. Ke3 {[%emt 0:02:27]} Ne4 {[%emt 0:00:21]} 34. Rdd1 {[%emt 0:01:47]} Nc3 {[%emt 0:00:22]} 35. Rd2 {[%emt 0:00:26]} Rb7 {[%emt 0:00:43]} 36. Kd3 {[%emt 0:01:10]} Rba7 {[%emt 0:00:40]} 37. a3 {[%emt 0:01:25]} Nxd5 {[%emt 0:00:25]} 38. a4 {[%emt 0:00:31]} Nc3 {[%emt 0:00:50]} 39. Re1 {[%emt 0:01:45]} d5 {[%emt 0:01:48]} 40. Bb5 {[%emt 0:00:42]} Nxb5 {[%emt 0:00:09]} 41. axb5 {[%emt 0:30:21]} Rxb5 {[%emt 0:30:14]} 42. Rde2 {[%emt 0:00:30]} Kf7 {[%emt 0:00:37]} 43. Kd4 {[%emt 0:00:12]} Rd7 {[%emt 0:03:03]} 44. Re5 {[%emt 0:01:09]} Ra5 {[%emt 0:01:36]} 45. R1e2 {[%emt 0:00:32]} Ra3 {[%emt 0:01:52]} 46. R2e3 {[%emt 0:00:06]} Ra1 {[%emt 0:00:00]} 47. Kc5 {[%emt 0:00:00]} d4 {[%emt 0:00:00]} 48. Rd3 {[%emt 0:00:00]} Rh1 {[%emt 0:00:00]} 49. h4 {[%emt 0:00:00]} Rc1+ {[%emt 0:00:00]} 50. Kxb4 {[%emt 0:00:00]} Rb7+ {[%emt 0:00:00]} 51. Rb5 {[%emt 0:00:00]} Rxb5+ {[%emt 0:00:00]} 52. Kxb5 {[%emt 0:00:00]} Rc3 {[%emt 0:00:00]} 53. Rxd4 {[%emt 0:00:00]} Rxb3+ {[%emt 0:00:00]} 54. Kc5 {[%emt 0:00:00]} Rxg3 {[%emt 0:00:00]} 55. Rd5 {[%emt 0:00:00]} Rg4 {[%emt 0:00:00]} 56. h5 {[%emt 0:00:00]} Rxf4 {[%emt 0:00:00]} 57. hxg6+ {[%emt 0:00:00]} hxg6 {[%emt 0:00:00]} 58. Re5 {[%emt 0:00:00]} Re4 {[%emt 0:00:00]} 59. Rd5 {[%emt 0:00:00]} Kf6 {[%emt 0:00:00]} 60. Rd1 {[%emt 0:00:00]} e5 {[%emt 0:00:00]} 61. Rg1 {[%emt 0:00:00]} f4 {[%emt 0:00:00]} 62. Kd5 {[%emt 0:00:00]} Kf5 {[%emt 0:00:00]} 63. Rg2 {[%emt 0:00:00]} g5 {[%emt 0:00:00]} 64. Rg1 {[%emt 0:00:00]} Rd4+ {[%emt 0:00:00]} 65. Kc5 {[%emt 0:00:00]} g4 {[%emt 0:00:00]} 66. Rg2 {[%emt 0:00:00]} g3 {[%emt 0:00:00]} 67. Rg1 {[%emt 0:00:00]} Kg4 {[%emt 0:00:00]} 68. Re1 {[%emt 0:00:00]} g2 {[%emt 0:12:06] Kxd4} 0-1

[Event "94th FRA-ch Open D 2019"]
[Site "Chartres"]
[Date "2019.08.25"]
[Round "9.1"]
[White "Lissillour, Baptiste"]
[Black "Melier, Ludovic"]
[Result "1-0"]
[ECO "A83"]
[WhiteElo "1469"]
[BlackElo "1425"]
[Annotator "NA"]
[PlyCount "49"]
[EventDate "2019.08.17"]
[EventType "swiss"]
[EventCountry "FRA"]
[SourceTitle "playchess.com"]
[Source "ChessBase"]
[SourceQuality "1"]
[TimeControl "40/5400+30:1800+30"]

1. d4 {[%emt 0:00:00]} f5 {[%emt 0:00:00]} 2. e4 {[%emt 0:00:10]} fxe4 {[%emt 0:00:44]} 3. Nc3 {[%emt 0:00:42]} Nf6 {[%emt 0:02:24]} 4. Bg5 {[%emt 0:00:41]} e6 {[%emt 0:05:18]} 5. Nxe4 {[%emt 0:05:41]} Be7 {[%emt 0:02:07]} 6. Bxf6 {[%emt 0:08:04]} Bxf6 {[%emt 0:00:43]} 7. c3 {[%emt 0:01:26]} b6 {[%emt 0:03:19]} 8. Bd3 {[%emt 0:07:52]} Bb7 {[%emt 0:04:07]} 9. Qh5+ {[%emt 0:08:54]} g6 {[%emt 0:03:19]} 10. Qf3 {[%emt 0:03:17]} Be7 {[%emt 0:05:43]} 11. h4 {[%emt 0:11:00]} d5 {[%emt 0:11:08]} 12. Ng3 {[%emt 0:02:33]} Rf8 {[%emt 0:06:05]} 13. Qg4 {[%emt 0:02:39]} Bc8 {[%emt 0:01:09]} 14. Nf3 {[%emt 0:09:05]} Bd6 {[%emt 0:12:17]} 15. h5 {[%emt 0:08:49]} e5 {[%emt 0:09:20]} 16. Bxg6+ {[%emt 0:00:53]} hxg6 {[%emt 0:00:50]} 17. Qxg6+ {[%emt 0:00:08]} Rf7 {[%emt 0:00:13]} 18. dxe5 {[%emt 0:01:33]} Qe7 {[%emt 0:06:41]} 19. O-O-O {[%emt 0:00:58]} Bc5 {[%emt 0:03:52]} 20. e6 {[%emt 0:03:12]} Bxe6 {[%emt 0:03:34]} 21. Rhe1 {[%emt 0:00:20]} Kd7 {[%emt 0:00:58]} 22. Ne5+ {[%emt 0:02:30]} Kd6 {[%emt 0:00:41]} 23. Ne4+ {[%emt 0:00:56]} Kxe5 {[%emt 0:00:44]} 24. Nxc5+ {[%emt 0:00:11]} Kd6 {[%emt 0:01:06]} 25. Rxe6+ {[%emt 0:00:12]} 1-0

[Event "94th FRA-ch Open D 2019"]
[Site "Chartres"]
[Date "2019.08.25"]
[Round "9.2"]
[White "Vu Dinh, Adrien"]
[Black "Minatchy, Tristan"]
[Result "0-1"]
[ECO "B07"]
[WhiteElo "1513"]
[BlackElo "1452"]
[Annotator "NA"]
[PlyCount "80"]
[EventDate "2019.08.17"]
[EventType "swiss"]
[EventCountry "FRA"]
[SourceTitle "playchess.com"]
[Source "ChessBase"]
[SourceQuality "1"]
[TimeControl "40/5400+30:1800+30"]

1. e4 {[%emt 0:00:00]} d6 {[%emt 0:00:00]} 2. d4 {[%emt 0:00:00]} Nf6 {[%emt 0:00:00]} 3. Nc3 {[%emt 0:00:00]} g6 {[%emt 0:00:00]} 4. Be3 {[%emt 0:00:00]} c6 {[%emt 0:00:38]} 5. f3 {[%emt 0:00:07]} Nbd7 {[%emt 0:01:28]} 6. Qd2 {[%emt 0:00:14]} b5 {[%emt 0:00:46]} 7. O-O-O {[%emt 0:00:59]} b4 {[%emt 0:00:18]} 8. Nb1 {[%emt 0:01:07]} a5 {[%emt 0:01:31]} 9. g4 {[%emt 0:03:21]} Nb6 {[%emt 0:11:38]} 10. h4 {[%emt 0:01:34]} h5 {[%emt 0:00:51]} 11. g5 {[%emt 0:03:38]} Nfd7 {[%emt 0:00:59]} 12. d5 {[%emt 0:12:28]} c5 {[%emt 0:13:14]} 13. f4 {[%emt 0:04:21]} Bg7 {[%emt 0:15:22]} 14. Nf3 {[%emt 0:02:53]} Na4 {[%emt 0:03:16]} 15. c3 {[%emt 0:01:43]} Rb8 {[%emt 0:00:59]} 16. Qc2 {[%emt 0:02:01]} Ndb6 {[%emt 0:02:36]} 17. e5 {[%emt 0:01:56]} O-O {[%emt 0:02:59]} 18. c4 {[%emt 0:02:33]} Bg4 {[%emt 0:03:55]} 19. Nbd2 {[%emt 0:00:43]} e6 {[%emt 0:04:00]} 20. dxe6 {[%emt 0:02:10]} dxe5 {[%emt 0:03:26]} 21. exf7+ {[%emt 0:08:18]} Rxf7 {[%emt 0:02:37]} 22. Qxg6 {[%emt 0:11:52]} Bf5 {[%emt 0:00:54]} 23. Qxf7+ {[%emt 0:06:34]} Kxf7 {[%emt 0:00:30]} 24. Ne4 {[%emt 0:00:24]} Bxe4 {[%emt 0:06:39]} 25. Rxd8 {[%emt 0:02:25]} Rxd8 {[%emt 0:00:41]} 26. Bg2 {[%emt 0:00:23]} exf4 {[%emt 0:01:26]} 27. Ne5+ {[%emt 0:01:11]} Bxe5 {[%emt 0:00:22]} 28. Bxe4 {[%emt 0:00:40]} Bxb2+ {[%emt 0:00:35]} 29. Kc2 {[%emt 0:01:37]} fxe3 {[%emt 0:00:48]} 30. g6+ {[%emt 0:01:06]} Kg7 {[%emt 0:00:41]} 31. Bd3 {[%emt 0:00:35]} Bc3 {[%emt 0:01:13]} 32. Rh2 {[%emt 0:00:46]} Nb2 {[%emt 0:00:39]} 33. Be2 {[%emt 0:00:18]} N6xc4 {[%emt 0:00:59]} 34. Bxc4 {[%emt 0:00:41]} Nxc4 {[%emt 0:00:06]} 35. a4 {[%emt 0:00:11]} Rd2+ {[%emt 0:00:12]} 36. Rxd2 {[%emt 0:00:48]} exd2 {[%emt 0:00:10]} 37. Kd3 {[%emt 0:00:34]} Nb2+ {[%emt 0:00:26]} 38. Ke4 {[%emt 0:00:33]} d1=Q {[%emt 0:00:21]} 39. Ke3 {[%emt 0:00:13]} Nc4+ {[%emt 0:00:27]} 40. Kf4 {[%emt 0:00:21]} Qg4# {[%emt 0:22:18]} 0-1

[Event "94th FRA-ch Open D 2019"]
[Site "Chartres"]
[Date "2019.08.25"]
[Round "9.3"]
[White "Thillerot, Anthony"]
[Black "Ebrard-Dulac, Leopold"]
[Result "0-1"]
[ECO "E92"]
[WhiteElo "1542"]
[BlackElo "1519"]
[Annotator "NA"]
[PlyCount "60"]
[EventDate "2019.08.17"]
[EventType "swiss"]
[EventCountry "FRA"]
[SourceTitle "playchess.com"]
[Source "ChessBase"]
[SourceQuality "1"]
[TimeControl "40/5400+30:1800+30"]

1. Nf3 {[%emt 0:00:00]} Nf6 {[%emt 0:00:00]} 2. c4 {[%emt 0:00:16]} g6 {[%emt 0:00:52]} 3. d4 {[%emt 0:00:50]} Bg7 {[%emt 0:00:55]} 4. Nc3 {[%emt 0:00:24]} O-O {[%emt 0:00:55]} 5. e4 {[%emt 0:00:05]} d6 {[%emt 0:00:14]} 6. Be2 {[%emt 0:02:54]} e5 {[%emt 0:02:36]} 7. dxe5 {[%emt 0:10:00]} dxe5 {[%emt 0:00:24]} 8. Qxd8 {[%emt 0:00:02]} Rxd8 {[%emt 0:00:17]} 9. Nxe5 {[%emt 0:00:28]} Nxe4 {[%emt 0:00:57]} 10. Nxf7 {[%emt 0:00:30]} Bxc3+ {[%emt 0:00:10]} 11. bxc3 {[%emt 0:01:43]} Kxf7 {[%emt 0:00:28]} 12. Bf3 {[%emt 0:05:46]} Nxc3 {[%emt 0:03:32]} 13. O-O {[%emt 0:01:03]} c6 {[%emt 0:04:37]} 14. a4 {[%emt 0:01:43]} Bf5 {[%emt 0:05:15]} 15. Bb2 {[%emt 0:19:58]} Ne4 {[%emt 0:04:17]} 16. g4 {[%emt 0:18:26]} Nd2 {[%emt 0:02:20]} 17. Be2 {[%emt 0:02:04]} Nxf1 {[%emt 0:02:51]} 18. gxf5 {[%emt 0:02:55]} Nd2 {[%emt 0:01:10]} 19. Rd1 {[%emt 0:02:39]} Na6 {[%emt 0:02:57]} 20. f6 {[%emt 0:10:31]} Ne4 {[%emt 0:02:09]} 21. Rb1 {[%emt 0:01:55]} Nac5 {[%emt 0:01:17]} 22. Ba3 {[%emt 0:02:28]} Nc3 {[%emt 0:03:06]} 23. Re1 {[%emt 0:05:58]} Nxe2+ {[%emt 0:00:38]} 24. Rxe2 {[%emt 0:00:01]} Ne6 {[%emt 0:00:34]} 25. Be7 {[%emt 0:03:46]} Rd1+ {[%emt 0:00:12]} 26. Kg2 {[%emt 0:00:50]} Nf4+ {[%emt 0:00:06]} 27. Kf3 {[%emt 0:00:04]} Nxe2 {[%emt 0:00:11]} 28. Kxe2 {[%emt 0:00:12]} Ra1 {[%emt 0:00:18]} 29. h4 {[%emt 0:01:04]} Re8 {[%emt 0:00:08]} 30. Kd3 {[%emt 0:00:09]} Rxe7 {[%emt 0:00:06]} 0-1

[Event "94th FRA-ch Open D 2019"]
[Site "Chartres"]
[Date "2019.08.25"]
[Round "9.4"]
[White "Alcindor, Samuel"]
[Black "Seillon, Geoffrey"]
[Result "1-0"]
[ECO "B07"]
[WhiteElo "1580"]
[BlackElo "1464"]
[Annotator "NA"]
[PlyCount "73"]
[EventDate "2019.08.17"]
[EventType "swiss"]
[EventCountry "FRA"]
[SourceTitle "playchess.com"]
[Source "ChessBase"]
[SourceQuality "1"]
[TimeControl "40/5400+30:1800+30"]

1. e4 {[%emt 1:30:30]} Nf6 {[%emt 1:30:30]} 2. Nc3 {[%emt 0:00:30]} d6 {[%emt 0:00:30]} 3. d4 {[%emt 0:00:30]} g6 {[%emt 0:00:30]} 4. Be3 {[%emt 0:00:30]} Bg7 {[%emt 0:00:30]} 5. f4 {[%emt 0:00:30]} Ng4 {[%emt 0:00:30]} 6. Qd2 {[%emt 0:00:30]} O-O {[%emt 0:00:30]} 7. Be2 {[%emt 0:00:30]} Nxe3 {[%emt 0:00:30]} 8. Qxe3 {[%emt 0:00:30]} c6 {[%emt 0:00:30]} 9. O-O-O {[%emt 0:00:30]} b5 {[%emt 0:00:30]} 10. h4 {[%emt 0:00:30]} Qb6 {[%emt 0:00:30]} 11. e5 {[%emt 0:00:30]} b4 {[%emt 0:00:30]} 12. Nb1 {[%emt 0:00:30]} Be6 {[%emt 0:00:30]} 13. h5 {[%emt 0:00:30]} dxe5 {[%emt 0:00:30]} 14. fxe5 {[%emt 0:00:30]} Nd7 {[%emt 0:00:30]} 15. Nf3 {[%emt 0:00:30]} Bxa2 {[%emt 0:00:30]} 16. hxg6 {[%emt 0:00:30]} fxg6 {[%emt 0:00:30]} 17. Ng5 {[%emt 0:00:30]} h5 {[%emt 0:00:30]} 18. Qd3 {[%emt 0:00:30]} Rf5 {[%emt 0:00:30]} 19. Rxh5 {[%emt 0:00:30]} c5 {[%emt 0:00:30]} 20. Rdh1 {[%emt 0:00:30]} c4 {[%emt 0:00:30]} 21. Qe4 {[%emt 0:00:30]} Rd8 {[%emt 0:00:30]} 22. Qd5+ {[%emt 0:00:30]} e6 {[%emt 0:00:30]} 23. Nxe6 {[%emt 0:00:30]} Nf6 {[%emt 0:00:30]} 24. Qxd8+ {[%emt 0:00:30]} Qxd8 {[%emt 0:00:30]} 25. Nxd8 {[%emt 0:00:30]} Nxh5 {[%emt 0:00:30]} 26. Bxh5 {[%emt 0:00:30]} gxh5 {[%emt 0:00:30]} 27. b3 {[%emt 0:00:30]} cxb3 {[%emt 0:00:30]} 28. cxb3 {[%emt 0:00:30]} Bxb3 {[%emt 0:00:30]} 29. Nc6 {[%emt 0:00:30]} Bh6+ {[%emt 0:00:30]} 30. Kb2 {[%emt 0:00:30]} Bd5 {[%emt 0:00:30]} 31. Ne7+ {[%emt 0:00:30]} Kf8 {[%emt 0:00:30]} 32. Nxf5 {[%emt 0:00:30]} Bxg2 {[%emt 0:00:30]} 33. Rxh5 {[%emt 0:00:30]} Bf4 {[%emt 0:00:30]} 34. Nh4 {[%emt 0:00:30]} Be4 {[%emt 0:00:30]} 35. Nf3 {[%emt 0:00:30]} Kf7 {[%emt 0:00:30]} 36. Rh4 {[%emt 0:00:30]} Bxe5 {[%emt 0:00:30]} 37. Nxe5+ {[%emt 0:00:30]} 1-0